bitfinex/quotes_ETHUSD_20250801
["timestamp","ask_amount","ask_price","bid_price","bid_amount"]
[1754065501282,10.1376,3629.2,3629.1,0.9249]
[1754065501588,14.3906,3629.2,3629.1,3.68040411]
[1754065501774,14.3896,3629.2,3629.1,3.68040411]
[1754065502993,14.3896,3629.2,3629.1,0.002]
[1754065503162,14.3896,3629.2,3629.1,0.9249]
[1754065503488,14.3896,3629.2,3629.1,3.68040411]
[1754065503985,14.252,3629.2,3629.1,3.68040411]
[1754065504853,10.0,3629.2,3629.1,3.68040411]
[1754065505053,14.252,3629.2,3629.1,3.68040411]
[1754065505276,4.252,3629.2,3629.1,3.68040411]
[1754065506213,10.0,3629.3,3629.2,2.75542819]
[1754065506387,10.0,3629.6,3629.5,2.75520044]
[1754065506576,14.251,3629.6,3629.5,3.67810044]
[1754065507281,4.251,3629.6,3629.5,3.67810044]
[1754065508416,10.0,3629.7,3629.6,2.75512453]
[1754065508578,10.0,3629.7,3629.6,3.67802453]
[1754065508778,10.0,3629.7,3629.6,3.81562453]
[1754065509320,4.251,3629.8,3629.7,2.75504862]
[1754065509683,0.001,3629.9,3629.7,2.75504862]
[1754065509684,4.252,3629.9,3629.8,2.75497272]
[1754065509885,4.252,3629.9,3629.8,3.67787272]
[1754065510119,4.252,3629.9,3629.8,3.81547272]
[1754065510894,4.252,3629.9,3629.8,2.75497272]
[1754065511417,14.252,3629.9,3629.8,2.75497272]
[1754065512824,14.252,3629.9,3629.8,3.24617272]
[1754065513033,14.252,3629.9,3629.8,3.67787272]
[1754065514454,10.001,3629.9,3629.8,3.67787272]
[1754065514604,14.251,3629.9,3629.8,3.81547272]
[1754065515630,0.001,3630.0,3629.9,2.75489682]
[1754065515802,0.001,3630.0,3629.9,3.71619682]
[1754065516236,0.001,3630.0,3629.9,2.75489682]
[1754065516436,4.25,3630.0,3629.5,0.4688]
[1754065516744,4.25,3630.0,3629.6,0.1376]
[1754065517042,0.9014,3629.9,3629.2,2.75535542]
[1754065517331,4.249,3629.8,3629.2,2.75535542]
[1754065517505,4.249,3629.8,3629.1,2.75749003]
[1754065517702,4.249,3629.8,3629.5,2.75515079]
[1754065517916,4.249,3629.8,3629.4,2.75524789]
[1754065518126,4.7244,3629.8,3629.4,2.75524789]
[1754065518304,4.249,3629.8,3629.1,0.4945]
[1754065518522,0.4754,3629.7,3629.1,0.91199512]
[1754065518727,4.249,3629.6,3629.3,2.75528251]
[1754065519438,4.249,3629.6,3629.1,3.66748648]
[1754065519439,4.249,3629.6,3629.2,2.7553996]
[1754065519742,4.249,3629.6,3629.1,0.002]
[1754065519929,0.4754,3629.5,3629.1,0.002]
[1754065520239,4.249,3629.4,3629.1,0.002]
[1754065520844,4.249,3629.4,3629.1,2.75749769]
[1754065521739,3.18182968,3630.0,3629.2,3.71672819]
[1754065521740,4.249,3629.3,3629.2,3.71672819]
[1754065524307,4.249,3629.3,3629.2,2.75542819]
[1754065524665,4.249,3629.3,3629.2,3.71672819]
[1754065524865,0.001,3630.0,3629.5,2.75518117]
[1754065525185,4.248,3629.9,3629.4,2.7552032]
[1754065525383,4.7234,3629.9,3629.4,2.75526289]
[1754065525775,0.4754,3629.8,3629.4,2.75526289]
[1754065526400,0.4754,3629.7,3629.1,2.75745416]
[1754065526570,0.4754,3629.7,3629.2,2.75538439]
[1754065526902,0.1376,3629.6,3629.1,0.1396]
[1754065527060,4.248,3629.5,3629.1,2.89507539]
[1754065527258,4.248,3629.5,3629.1,2.89505633]
[1754065527462,4.248,3629.5,3629.2,2.7553879]
[1754065527658,4.248,3629.5,3629.3,2.75535175]
[1754065528499,4.248,3629.5,3629.4,2.75527635]
[1754065529083,0.1376,3629.7,3629.5,2.75520044]
[1754065529261,4.248,3629.6,3629.5,2.75520044]
[1754065529462,4.248,3629.6,3629.1,0.1396]
[1754065529674,4.248,3629.6,3629.3,2.75531069]
[1754065529997,4.248,3629.6,3629.1,2.89506669]
[1754065529998,4.248,3629.6,3629.2,2.75539941]
[1754065530392,4.248,3629.6,3629.2,3.24789941]
[1754065530579,4.248,3629.6,3629.3,2.75534511]
[1754065530780,4.248,3629.6,3629.3,2.75533875]
[1754065531711,4.248,3629.6,3629.2,3.24789618]
[1754065531892,0.426,3629.5,3629.1,0.002]
[1754065532070,0.1376,3629.3,3629.1,0.002]
[1754065532271,4.247,3629.2,3629.1,0.002]
[1754065532703,4.7224,3629.2,3629.1,0.002]
[1754065533081,7.73570893,3629.2,3629.1,0.002]
[1754065533283,0.73328074,3629.2,3629.1,0.002]
[1754065533484,7.26030893,3629.2,3629.1,0.002]
[1754065533672,8.798561,3629.2,3629.1,0.002]
[1754065533985,4.50486132,3629.2,3629.1,0.002]
[1754065534187,4.247,3629.2,3629.1,0.002]
[1754065534398,4.247,3629.2,3629.1,3.71880411]
[1754065535005,0.1376,3629.4,3629.3,2.75535227]
[1754065535184,4.247,3629.4,3629.2,0.9613]
[1754065535390,4.247,3629.4,3629.3,3.85425227]
[1754065535906,0.001,3630.0,3629.7,2.75499976]
[1754065536113,0.001,3630.0,3629.4,0.9613]
[1754065536269,4.247,3629.9,3629.8,2.89254733]
[1754065536470,4.247,3629.9,3629.8,3.85384733]
[1754065538510,0.001,3630.0,3629.9,2.75489682]
[1754065538712,0.001,3630.0,3629.9,3.71619682]
[1754065540025,0.001,3630.0,3629.9,3.85379682]
[1754065545644,1e-08,3630.3,3630.2,2.75466916]
[1754065545791,1e-08,3630.3,3630.2,7.57721585]
[1754065545986,1e-08,3630.3,3630.2,11.59286916]
[1754065546312,4.245,3631.2,3630.6,3.30436566]
[1754065546514,4.3826,3631.7,3630.6,16.90943881]
[1754065546715,4.3826,3631.7,3630.6,17.78749516]
[1754065546885,4.245,3631.7,3630.6,20.78749516]
[1754065547718,1e-08,3630.7,3630.6,20.78749516]
[1754065550016,0.01,3631.9,3631.8,2.75345558]
[1754065550216,0.01,3631.9,3631.8,3.65905558]
[1754065550449,0.01,3631.9,3631.8,11.04065558]
[1754065551060,0.01,3631.9,3631.8,11.59065558]
[1754065554973,0.001,3632.0,3631.9,6.30337977]
[1754065555167,0.001,3632.0,3631.9,7.20897977]
[1754065555738,0.001,3632.1,3632.0,6.30330396]
[1754065556051,0.001,3632.1,3632.0,11.45090396]
[1754065556250,0.001,3632.1,3632.0,11.58850396]
[1754065557072,1e-08,3632.1,3632.0,11.58850396]
[1754065558791,2.75150048,3634.4,3632.0,11.58850396]
[1754065558792,0.426,3634.1,3633.1,9.1949295]
[1754065558956,0.4586,3633.8,3633.7,2.75201585]
[1754065559161,0.8846,3633.8,3633.7,2.88961585]
[1754065559832,0.4586,3633.8,3633.7,2.88961585]
[1754065560033,0.4586,3634.0,3633.8,2.75194011]
[1754065560239,0.4586,3634.1,3633.8,2.75194011]
[1754065560486,0.4586,3634.3,3633.8,2.77945951]
[1754065560634,0.4586,3634.5,3633.8,2.77945951]
[1754065560838,0.4586,3634.4,3633.8,2.77945951]
[1754065561141,0.4586,3634.4,3633.8,2.98632967]
[1754065561454,0.4586,3634.3,3633.8,2.95881027]
[1754065561665,0.4586,3634.1,3633.8,2.95881027]
[1754065562475,0.4686,3633.9,3633.8,2.95881027]
[1754065562875,0.01,3633.9,3633.8,2.95881027]
[1754065563064,0.01,3633.9,3633.7,2.88960897]
[1754065563265,0.01,3633.9,3632.7,1.278437]
[1754065563266,0.426,3633.8,3632.7,0.4516]
[1754065563470,0.426,3633.8,3633.4,0.1376]
[1754065563471,0.82324536,3633.7,3633.4,0.1376]
[1754065563689,0.8846,3633.6,3633.4,0.1376]
[1754065563985,0.8846,3633.6,3633.4,2.889834]
[1754065564196,0.8846,3633.5,3633.4,2.889834]
[1754065564396,0.8846,3633.5,3633.4,0.1376]
[1754065564690,0.8846,3633.5,3633.4,2.88984307]
[1754065564897,0.426,3633.5,3633.4,0.1376]
[1754065565059,0.8846,3633.5,3633.2,0.1376]
[1754065565261,0.426,3633.4,3633.2,0.1376]
[1754065565497,0.8846,3633.4,3633.2,0.1376]
[1754065565768,0.30309099,3634.8,3633.6,2.75209158]
[1754065565973,0.426,3634.8,3633.8,2.75194011]
[1754065566194,0.426,3634.8,3633.8,3.30194011]
[1754065566392,0.01,3634.9,3633.8,7.20754011]
[1754065566608,1e-08,3633.9,3633.8,7.20754011]
[1754065567171,1e-08,3633.9,3633.8,5.75194011]
[1754065567361,1e-08,3633.9,3633.8,11.78434879]
[1754065568255,1e-08,3633.9,3633.8,6.63974879]
[1754065568591,1e-08,3633.9,3633.8,9.99094011]
[1754065568759,0.45860001,3633.9,3633.8,2.75194011]
[1754065569357,1e-08,3633.9,3633.8,2.75194011]
[1754065570252,1e-08,3633.9,3633.8,3.65754011]
[1754065570456,1e-08,3633.9,3633.8,2.75194011]
[1754065570790,1e-08,3633.9,3633.8,9.98994011]
[1754065571211,1e-08,3633.9,3633.8,10.44394011]
[1754065571354,1e-08,3633.9,3633.8,10.89554011]
[1754065571876,1e-08,3633.9,3633.8,9.98994011]
[1754065573583,1e-08,3633.9,3633.8,5.75194011]
[1754065573785,1e-08,3633.9,3632.8,0.9056]
[1754065573989,0.8846,3633.8,3633.4,2.75218958]
[1754065574194,0.8846,3633.7,3632.8,4.238]
[1754065574397,0.4586,3633.6,3633.3,2.75228257]
[1754065574593,0.4586,3633.6,3633.4,2.75224282]
[1754065574812,0.426,3633.5,3633.4,2.75224282]
[1754065574981,0.8846,3633.5,3633.4,2.75224282]
[1754065575180,0.8846,3633.5,3633.2,2.75239458]
[1754065575486,2.75186787,3633.9,3633.2,2.75239458]
[1754065575487,0.4981,3633.4,3633.3,2.75231882]
[1754065575879,0.4981,3633.4,3633.3,2.88991882]
[1754065576264,0.5636,3633.8,3633.6,2.75203754]
[1754065576459,1e-08,3633.9,3633.6,2.75203754]
[1754065576460,1e-08,3633.9,3633.8,2.75194011]
[1754065577006,1e-08,3633.9,3633.8,7.24764011]
[1754065577209,1e-08,3633.9,3633.8,11.48564011]
[1754065579208,1e-08,3633.9,3633.8,5.75194011]
[1754065579705,1e-08,3633.9,3633.8,2.75194011]
[1754065579906,0.49810001,3633.9,3632.8,0.67201421]
[1754065580103,3.67599523,3633.9,3632.6,2.75278857]
[1754065580271,1.29169952,3633.8,3632.7,3.0]
[1754065580468,0.4981,3633.8,3633.0,2.75251036]
[1754065580671,0.4981,3633.8,3633.4,2.75221918]
[1754065580904,0.9241,3633.8,3633.4,2.75221918]
[1754065581107,0.9241,3633.7,3633.4,2.75221918]
[1754065581310,0.4981,3633.6,3633.5,2.75216733]
[1754065581486,0.49810001,3633.9,3633.8,2.75194011]
[1754065581686,0.49810001,3633.9,3632.8,6.9946975]
[1754065581687,0.49810001,3633.9,3633.0,2.7525461]
[1754065581888,0.49810001,3633.9,3633.5,2.75211428]
[1754065582097,0.4981,3633.8,3633.6,2.75208427]
[1754065582296,0.4981,3633.7,3633.6,2.75208427]
[1754065583307,1e-08,3633.9,3633.8,2.75194011]
[1754065583516,0.00100001,3633.9,3633.8,2.75194011]
[1754065584411,0.49910001,3633.9,3633.8,2.75194011]
[1754065584640,0.75609886,3633.9,3633.8,2.75194011]
[1754065586206,0.25799886,3633.9,3633.8,2.75194011]
[1754065586538,0.00100001,3633.9,3633.8,2.75194011]
[1754065586736,0.00100001,3633.9,3633.8,3.69764011]
[1754065590393,0.00100001,3633.9,3633.8,3.72515951]
[1754065590722,0.00100001,3633.9,3633.8,3.69764011]
[1754065590920,0.00100001,3633.9,3633.8,3.72515951]
[1754065591218,0.00100001,3633.9,3633.8,4.38524011]
[1754065593229,1e-08,3633.9,3633.8,4.38524011]
[1754065593437,1e-08,3633.9,3633.8,8.62224011]
[1754065594137,1e-08,3633.9,3633.8,7.67654011]
[1754065594340,1e-08,3633.9,3633.8,2.88954011]
[1754065595538,1e-08,3633.9,3633.8,3.86275951]
[1754065595703,1e-08,3633.9,3633.8,7.41275951]
[1754065595909,1e-08,3633.9,3633.8,7.38524011]
[1754065598772,1e-08,3634.3,3634.2,3.30163722]
[1754065599051,1e-08,3634.3,3634.2,7.53863722]
[1754065599202,1e-08,3634.3,3634.2,11.15893722]
[1754065599410,1e-08,3634.3,3634.2,11.62193722]
[1754065603942,1e-08,3634.3,3634.2,6.43923722]
[1754065604113,1e-08,3634.3,3634.2,10.67623722]
[1754065605044,1e-08,3634.3,3634.2,6.43923722]
[1754065605242,1e-08,3634.3,3634.2,3.43923722]
[1754065605816,0.45470001,3634.3,3634.2,2.88923722]
[1754065606263,0.88070001,3634.3,3634.2,2.88923722]
[1754065606551,0.45470001,3634.3,3634.2,2.88923722]
[1754065606790,0.45470001,3634.3,3633.5,3.0]
[1754065606791,0.88070001,3634.3,3633.5,2.75216612]
[1754065606966,0.8807,3634.2,3633.4,2.75421259]
[1754065607167,0.25727959,3634.1,3633.4,0.002]
[1754065607367,1.13797959,3634.0,3633.5,2.75216304]
[1754065607563,1.13797959,3633.9,3633.6,2.75207901]
[1754065607751,1.13797959,3633.8,3633.7,2.75201585]
[1754065608170,0.71197959,3633.8,3633.7,2.75201585]
[1754065608882,0.25727959,3633.8,3633.7,3.30201585]
[1754065609094,0.25723556,3634.2,3633.7,1.4456]
[1754065609296,0.25723553,3634.1,3634.0,2.75178866]
[1754065609500,0.25723553,3634.2,3634.1,2.75171294]
[1754065609795,0.25722082,3634.2,3634.1,2.75171294]
[1754065610299,1e-08,3634.3,3633.8,0.41977268]
[1754065610300,1e-08,3634.3,3634.2,2.75163722]
[1754065612102,0.45470001,3634.3,3634.2,2.75163722]
[1754065612595,1e-08,3634.3,3634.2,2.75163722]
[1754065613877,1e-08,3634.3,3634.2,4.11570012]
[1754065616183,1e-08,3634.3,3634.2,4.66570012]
[1754065616435,1e-08,3634.3,3634.2,4.69321649]
[1754065616729,1e-08,3634.3,3634.2,3.35770012]
[1754065617034,0.45470001,3634.3,3634.2,2.88923722]
[1754065618006,1e-08,3634.3,3634.2,2.88923722]
[1754065621034,0.45470001,3634.3,3634.2,2.88923722]
[1754065621496,0.45470001,3634.3,3634.2,2.75163722]
[1754065622546,1e-08,3634.3,3634.2,2.75163722]
[1754065622891,1e-08,3634.3,3634.2,3.67475359]
[1754065623217,1e-08,3634.3,3634.2,2.75163722]
[1754065623427,0.45470001,3634.3,3632.9,2.75459058]
[1754065623731,3.00922091,3634.2,3632.9,3.002]
[1754065623920,5.16370586,3634.1,3633.6,2.752083]
[1754065624123,0.25756384,3634.0,3632.9,2.75458494]
[1754065624297,0.25756384,3633.9,3633.5,2.75216189]
[1754065624635,0.71226384,3633.8,3633.5,2.75216189]
[1754065624818,0.71226384,3633.7,3632.9,0.002]
[1754065625023,0.25756384,3633.6,3633.5,2.75216733]
[1754065625217,0.25756384,3633.7,3633.5,2.75216733]
[1754065625422,0.25756384,3633.6,3633.5,2.75216733]
[1754065625622,1e-08,3634.3,3634.2,2.75163722]
[1754065625922,0.25743781,3634.3,3634.2,2.75163722]
[1754065626233,1.13813781,3634.3,3633.4,0.002]
[1754065626545,0.2574378,3634.2,3633.4,0.002]
[1754065626835,0.2574378,3634.1,3633.8,2.75193098]
[1754065627042,1.1381378,3634.0,3633.5,2.75211665]
[1754065627207,0.2574378,3633.9,3633.4,0.002]
[1754065627410,0.2574378,3633.8,3633.7,2.75201585]
[1754065627609,4.256,3634.1,3633.7,2.75199885]
[1754065627797,0.25737879,3634.0,3633.9,2.75186438]
[1754065628636,0.25737879,3634.0,3633.9,3.64746438]
[1754065628929,4.256,3634.2,3633.9,3.64746438]
[1754065628930,4.256,3634.2,3634.1,2.75171294]
[1754065629137,4.5133549,3634.2,3634.1,2.75171294]
[1754065629348,1e-08,3634.3,3634.2,2.75163722]
[1754065629815,0.25734211,3634.3,3634.2,2.75163722]
[1754065630431,0.25735195,3634.3,3634.2,2.75163722]
[1754065630833,0.25735195,3634.3,3633.4,3.4605]
[1754065631001,0.25735194,3634.2,3633.4,0.4605]
[1754065631194,0.71205194,3634.1,3633.4,0.4605]
[1754065631434,0.25735194,3634.0,3633.4,2.75417819]
[1754065631640,0.71205194,3633.9,3633.4,2.75417819]
[1754065631834,0.25735194,3633.8,3633.5,2.75216733]
[1754065632038,0.4547,3633.8,3633.7,2.75196159]
[1754065632226,0.25743231,3633.8,3633.7,2.75196159]
[1754065632423,0.4547,3634.2,3633.6,0.4371]
[1754065632627,4.51347254,3634.1,3633.8,2.75188741]
[1754065632946,0.25747254,3634.0,3633.9,2.75186438]
[1754065633616,0.25747254,3634.0,3633.9,3.64746438]
[1754065634142,4.256,3634.2,3634.1,2.75171294]
[1754065634337,4.51351763,3634.2,3634.1,2.75171294]
[1754065634510,4.51351763,3634.2,3634.1,2.88931294]
[1754065634915,4.96827184,3634.2,3633.5,2.75216733]
[1754065635117,4.96827184,3634.2,3633.2,0.8956]
[1754065635118,0.84987184,3634.1,3633.6,0.1376]
[1754065635312,1.13827184,3634.0,3633.5,0.1376]
[1754065635514,1.13827184,3634.0,3633.4,0.002]
[1754065635515,0.25757184,3633.9,3633.4,0.002]
[1754065635714,2.88976733,3633.5,3633.4,0.002]
[1754065635943,7.99528104,3633.5,3633.4,0.002]
[1754065636233,8.89758104,3633.5,3633.4,0.002]
[1754065637040,8.89858104,3633.5,3633.4,0.002]
[1754065637836,6.14641371,3633.5,3633.4,0.002]
[1754065638214,1.32381371,3633.5,3633.4,0.002]
[1754065638534,5.72141371,3633.5,3633.4,0.002]
[1754065638736,8.47358104,3633.5,3633.4,0.002]
[1754065638939,8.89958104,3633.5,3633.4,0.002]
[1754065639741,5.72141371,3633.5,3633.4,0.002]
[1754065640036,5.71941371,3633.5,3633.4,0.002]
[1754065641103,0.39517184,3633.5,3633.4,0.002]
[1754065641404,0.25757184,3633.5,3633.4,2.75424307]
[1754065641604,1.91517641,3637.4,3634.6,2.75133439]
[1754065641837,0.4718,3636.8,3635.8,2.75042631]
[1754065642042,3.22149061,3636.8,3635.8,4.96582033]
[1754065642217,0.1376,3636.3,3635.8,0.6236]
[1754065642601,0.1376,3636.3,3635.8,3.37402631]
[1754065643235,0.1376,3636.3,3635.8,2.75042631]
[1754065643443,0.1376,3636.3,3635.7,2.88803784]
[1754065643745,0.4718,3636.8,3635.8,2.75042631]
[1754065643924,0.1376,3636.4,3635.8,3.67322631]
[1754065644124,0.1376,3636.4,3635.8,3.81082631]
[1754065644645,4.3,3636.6,3635.8,3.81082631]
[1754065644840,4.4376,3636.6,3635.8,3.81082631]
[1754065645009,4.4376,3636.6,3635.8,3.63044512]
[1754065645820,0.4718,3636.5,3635.8,3.63044512]
[1754065646748,0.4718,3636.5,3635.8,3.83842756]
[1754065647509,0.011,3635.9,3635.8,3.83842756]
[1754065647805,0.011,3635.9,3635.8,3.35242756]
[1754065648007,0.011,3635.9,3635.8,3.09600875]
[1754065648607,0.4828,3635.9,3635.6,2.75056012]
[1754065648812,0.4718,3635.8,3635.5,2.88824507]
[1754065649010,0.011,3635.9,3635.5,0.1376]
[1754065649211,0.011,3635.9,3635.4,2.7506971]
[1754065649212,0.6094,3635.7,3635.4,2.7506971]
[1754065649420,0.4718,3635.6,3635.4,2.7506971]
[1754065649622,0.4718,3635.6,3635.2,0.1376]
[1754065649852,0.9211,3635.5,3634.5,0.486]
[1754065650148,0.1376,3635.4,3634.9,0.1376]
[1754065650334,0.6094,3635.4,3635.1,2.75095595]
[1754065650641,0.6094,3635.4,3635.2,2.75086694]
[1754065650821,0.6094,3635.4,3634.9,0.1376]
[1754065651026,0.4718,3635.3,3634.9,2.88869947]
[1754065651226,0.4718,3635.3,3635.1,2.75089987]
[1754065651534,0.4718,3635.2,3634.6,2.75127158]
[1754065651750,0.1376,3635.0,3634.5,2.75135491]
[1754065651913,0.4718,3634.9,3634.4,0.34570268]
[1754065652262,0.4718,3634.9,3634.6,2.75127388]
[1754065652438,0.4718,3634.9,3634.7,2.7512504]
[1754065652609,0.4718,3634.8,3634.1,0.486]
[1754065652813,0.6094,3634.8,3634.3,0.1376]
[1754065653027,0.4718,3634.7,3634.3,2.88916117]
[1754065653235,0.4718,3634.7,3634.4,2.7514319]
[1754065653635,0.4718,3634.7,3634.4,2.75148234]
[1754065653964,0.4718,3634.7,3634.4,2.7514347]
[1754065654369,0.4718,3634.7,3634.6,2.75133439]
[1754065654658,0.4718,3634.7,3634.5,2.75138165]
[1754065654949,0.4718,3634.7,3634.3,2.88916048]
[1754065655316,4.81156731,3634.8,3634.4,2.7514858]
[1754065655652,4.81156731,3634.8,3634.5,2.75139268]
[1754065655814,0.4718,3634.7,3634.3,0.1376]
[1754065656018,0.4718,3634.7,3634.3,2.75156151]
[1754065656241,0.4718,3634.7,3634.4,2.75147747]
[1754065656759,0.4718,3634.7,3634.2,2.88922257]
[1754065656954,0.4718,3634.7,3634.4,2.75143693]
[1754065657539,0.4718,3634.7,3634.2,3.37522257]
[1754065657728,0.4718,3634.7,3634.4,2.75146703]
[1754065657940,0.4718,3634.7,3634.3,2.75154208]
[1754065658137,4.81156731,3634.8,3634.5,2.7513559]
[1754065658336,0.52833673,3634.7,3634.5,2.7513559]
[1754065658838,0.52833673,3634.7,3634.6,2.75133439]
[1754065659241,0.49034,3635.3,3634.9,2.75109596]
[1754065659560,0.1376,3635.0,3634.6,2.75128829]
[1754065659757,4.286,3634.9,3634.7,2.7512392]
[1754065659926,4.286,3634.9,3634.8,2.751183]
[1754065660262,4.286,3634.9,3634.7,3.23724058]
[1754065660558,4.286,3634.9,3634.2,0.486]
[1754065660758,4.286,3634.9,3634.7,2.75118956]
[1754065661062,4.286,3634.9,3634.8,2.751183]
[1754065661224,4.286,3634.9,3634.8,0.486]
[1754065661435,4.286,3634.9,3634.3,2.75153549]
[1754065661436,8.24318133,3634.9,3634.3,2.75153549]
[1754065661657,0.1376,3634.7,3634.2,0.1376]
[1754065661823,0.6094,3634.7,3634.3,2.75156151]
[1754065662340,0.6094,3634.7,3634.3,2.75153637]
[1754065662536,0.6094,3634.7,3634.2,0.1376]
[1754065662837,3.67234129,3634.6,3633.8,2.75187829]
[1754065663017,0.1376,3634.3,3633.8,2.88947829]
[1754065663217,4.283,3634.2,3633.8,2.88949733]
[1754065663437,4.283,3634.2,3633.9,2.75184844]
[1754065663637,4.283,3634.2,3633.8,3.37552115]
[1754065664220,4.283,3634.2,3633.8,0.6236]
[1754065664751,4.283,3634.2,3633.8,0.486]
[1754065665056,0.1376,3633.9,3633.5,2.75215684]
[1754065665253,4.283,3633.8,3633.4,0.002]
[1754065665422,7.5067448,3633.8,3633.4,0.002]
[1754065665619,0.1376,3633.7,3633.4,0.002]
[1754065666050,0.9057,3633.6,3633.4,2.75421604]
[1754065666253,0.1376,3633.7,3633.4,2.75421604]
[1754065666556,2.88976733,3633.5,3633.4,0.002]
[1754065666720,0.1376,3633.5,3633.4,0.002]
[1754065666926,0.5941,3633.5,3633.4,0.002]
[1754065667229,0.1376,3633.5,3633.4,0.4655]
[1754065667563,4.281,3633.5,3633.4,3.65714307]
[1754065667732,4.281,3633.5,3633.4,3.79474307]
[1754065668259,0.4565,3634.5,3633.7,2.75197239]
[1754065668561,0.1376,3634.1,3633.7,2.75197239]
[1754065668757,4.281,3634.0,3633.9,2.75180609]
[1754065669266,4.281,3634.0,3633.6,0.1376]
[1754065669267,4.28,3634.0,3633.6,3.21553737]
[1754065669578,4.28,3634.0,3633.7,0.1376]
[1754065669858,4.28,3634.0,3633.6,0.4635]
[1754065669859,0.5941,3633.9,3633.4,0.002]
[1754065670059,2.75206416,3633.7,3633.4,0.002]
[1754065670363,2.75216733,3633.5,3633.4,0.002]
[1754065670933,3.34626733,3633.5,3633.4,0.002]
[1754065671135,4.44318218,3633.5,3633.4,0.002]
[1754065672929,1.23451485,3633.5,3633.4,0.002]
[1754065673135,3.98668218,3633.5,3633.4,0.002]
[1754065673562,1.23451485,3633.5,3632.9,0.4655]
[1754065673764,0.1376,3633.3,3633.0,2.75249207]
[1754065673968,4.284,3633.2,3633.1,0.4635]
[1754065674761,4.284,3633.2,3632.9,0.002]
[1754065674962,4.284,3633.2,3632.9,2.75461747]
[1754065675166,4.284,3633.2,3633.0,3.21604237]
[1754065675558,4.284,3633.2,3633.1,0.4635]
[1754065675958,4.284,3633.2,3633.1,3.65537034]
[1754065679262,4.284,3633.2,3633.0,0.1376]
[1754065679463,2.7525461,3633.0,3632.9,0.002]
[1754065679773,6.00942062,3633.0,3632.9,0.002]
[1754065680079,6.91512062,3633.0,3632.9,0.002]
[1754065681060,11.19612062,3633.0,3632.9,0.002]
[1754065681255,13.26613972,3633.0,3632.9,0.002]
[1754065681553,8.21703972,3633.0,3632.9,0.002]
[1754065681765,9.74549362,3633.0,3632.9,0.002]
[1754065681974,12.49803972,3633.0,3632.9,0.002]
[1754065682160,12.95453972,3633.0,3632.9,0.002]
[1754065682368,13.40373972,3633.0,3632.9,0.002]
[1754065683376,13.1468652,3633.0,3632.9,0.002]
[1754065683579,13.40365948,3633.0,3632.9,0.002]
[1754065685379,12.95545948,3633.0,3632.9,0.002]
[1754065686107,8.21695948,3633.0,3632.9,0.002]
[1754065686310,12.95545948,3633.0,3632.9,0.002]
[1754065686479,13.40465948,3633.0,3632.9,0.002]
[1754065692082,8.07935948,3633.0,3632.9,0.002]
[1754065692406,12.49395948,3633.0,3632.9,0.002]
[1754065694882,12.49395948,3633.0,3632.9,0.4655]
[1754065695095,7.66939428,3633.0,3632.9,0.9049]
[1754065695509,3.39439428,3633.0,3632.9,0.9049]
[1754065695699,7.4106,3633.0,3632.9,0.9049]
[1754065695901,4.66765678,3633.0,3632.9,0.9049]
[1754065696102,4.53005678,3633.0,3632.9,0.9049]
[1754065696928,7.28260288,3633.0,3632.9,0.002]
[1754065697812,7.28260288,3633.0,3632.9,0.4821]
[1754065698108,4.53005678,3633.0,3632.9,0.9149]
[1754065698309,7.28260288,3633.0,3632.9,0.9149]
[1754065698811,4.53005678,3633.0,3632.9,0.9149]
[1754065699014,4.53005678,3633.0,3632.9,3.66752187]
[1754065699720,0.25705678,3633.0,3632.9,3.66752187]
[1754065700092,4.53005678,3633.0,3632.9,3.66752187]
[1754065701492,4.52905678,3633.0,3632.9,3.66752187]
[1754065701834,4.272,3633.0,3632.9,3.66752187]
[1754065704222,0.4658,3634.5,3633.0,3.30247464]
[1754065704223,3.0,3634.5,3633.0,3.30247464]
[1754065704429,4.52628416,3634.4,3634.1,2.75166595]
[1754065704631,0.25728416,3634.3,3634.2,2.75163722]
[1754065704932,0.25728416,3634.3,3634.0,2.7517813]
[1754065705133,9.3673454,3634.6,3634.0,2.75172703]
[1754065705134,4.52628416,3634.2,3634.0,2.75172703]
[1754065705338,0.25728416,3634.1,3634.0,2.75172703]
[1754065705646,0.25717036,3634.1,3634.0,2.75172703]
[1754065705845,0.25717036,3634.1,3633.2,9.7227186]
[1754065705846,0.25717036,3634.1,3633.9,2.75184466]
[1754065706134,0.25717036,3634.1,3634.0,2.75178866]
[1754065706312,0.25717036,3634.1,3634.0,0.4801]
[1754065706513,0.25717036,3634.1,3634.0,3.23188866]
[1754065706710,0.25717036,3634.1,3634.0,3.66468866]
[1754065707452,4.269,3634.2,3634.1,2.75171294]
[1754065707612,4.52598435,3634.2,3634.1,3.23181294]
[1754065708556,4.269,3634.2,3634.1,0.9129]
[1754065709520,4.269,3634.2,3634.1,0.4801]
[1754065709948,4.269,3634.2,3634.1,3.23181294]
[1754065710335,4.263,3634.2,3634.1,3.66461294]
[1754065710667,4.263,3634.2,3634.1,0.4801]
[1754065711030,4.263,3634.2,3634.1,0.9129]
[1754065711238,4.263,3634.2,3634.1,3.66461294]
[1754065712433,6.616,3634.6,3634.1,0.9129]
[1754065712632,4.262,3634.5,3634.4,2.75145449]
[1754065713367,4.262,3634.5,3634.4,3.23155449]
[1754065714773,4.262,3634.5,3634.4,0.4801]
[1754065716168,4.7278,3634.5,3634.1,2.75169627]
[1754065716370,4.7278,3634.5,3634.0,0.4801]
[1754065716371,4.7278,3634.5,3634.2,2.88919113]
[1754065716580,4.7278,3634.5,3634.2,0.1376]
[1754065717470,0.4658,3634.4,3634.0,3.23183661]
[1754065717675,4.257,3634.3,3634.0,2.88937899]
[1754065717844,4.7228,3634.3,3634.1,2.75169814]
[1754065718168,0.4658,3634.2,3633.9,2.75184945]
[1754065718377,4.256,3634.1,3633.9,2.75184945]
[1754065718671,4.256,3634.1,3634.0,2.75178866]
[1754065719061,4.256,3634.1,3634.0,3.66468866]
[1754065719369,0.1376,3634.3,3634.2,2.75163722]